[Event "Israel National League 2024"]
[Site "Israel"]
[Date "2024.02.09"]
[Round "5.26"]
[White "Gorodetzky, David"]
[Black "Gorshtein, Ido"]
[Result "0-1"]
[ECO "B86"]
[WhiteElo "2486"]
[BlackElo "2523"]
[Annotator "TA"]
[PlyCount "68"]
[EventDate "2024.01.07"]
[EventType "team-tourn"]
[EventCountry "ISR"]
[SourceTitle "playchess.com"]
[Source "ChessBase"]
[SourceQuality "1"]
[TimeControl "40/5400+30:1800+30"]

{[%evp 20,68,-7,-30,-21,-15,-20,-72,-67,-60,-70,-77,-74,-67,-67,-73,-69,-85,-78,-72,-72,-119,-135,-325,-325,-407,-413,-395,-383,-379,-361,-321,-274,-270,-262,-256,-88,-514,-350,-895,-860,-2621,-2039,-29988,-29984,-29984,-29985,-29985,-29986,-29988,-29989]} 1. e4 {[%emt 0:00:14]} c5 {[%emt 0:01:00]} 2. Nf3 {[%emt 0:01:03]} d6 {[%emt 0:00:06]} 3. d4 {[%emt 0:01:10]} cxd4 {[%emt 0:00:08]} 4. Nxd4 {[%emt 0:00:05]} Nf6 {[%emt 0:00:06]} 5. Nc3 {[%emt 0:00:05]} a6 {[%emt 0:00:05]} 6. Bc4 {[%emt 0:00:10]} e6 {[%emt 0:00:07]} 7. Be3 {[%emt 0:01:55]} Be7 {[%emt 0:01:39]} 8. Bb3 {[%emt 0:03:06]} O-O {[%emt 0:06:01]} 9. Qe2 {[%emt 0:22:17]} b5 {[%emt 0:04:46]} 10. O-O-O {[%emt 0:09:31]} Qc7 {[%emt 0:10:38]} 11. g4 {[%emt 0:07:49]} b4 {[%emt 0:03:17]} 12. Na4 {[%emt 0:02:38]} Nbd7 {[%emt 0:05:56][%cal Od7c5] Threatens to win with ...Nc5!} 13. f3 {[%emt 0:08:30] [#]} (13. Bf4 $1 $11 {keeps the balance.}) 13... Nc5 $1 $17 {[%emt 0:00:42] And now ...Bd7 would win. Black is better.} 14. g5 {[%emt 0:16:46]} Nfd7 {[%emt 0:01:12]} 15. h4 {[%emt 0:06:56]} Nxa4 {[%emt 0:07:17]} 16. Bxa4 {[%emt 0:00:01]} Nc5 {[%emt 0:00:10]} 17. Bb3 {[%emt 0:02:41] White is on the road to losing.} Nxb3+ {[%emt 0:03:37]} 18. axb3 {[%emt 0:00:52]} Bd7 {[%emt 0:04:56]} 19. h5 {[%emt 0:01:45]} a5 {[%emt 0:01:40]} 20. Nb5 {[%emt 0:06:31]} ({White should try} 20. Qc4 Qb7 21. Qd3) 20... Qb8 {[%emt 0:04:26]} 21. Nxd6 {[%emt 0:00:35]} (21. Nd4 $17) 21... Bxd6 $19 {[%emt 0:00:34]} 22. Qd2 {[%emt 0:00:02]} Ra6 {[%emt 0:03:54]} 23. e5 {[%emt 0:00:35] [#]} a4 $1 {[%emt 0:18:16]} 24. bxa4 {[%emt 0:00:31] [#]} (24. exd6 axb3 25. Qd4 bxc2 $19) 24... b3 $1 {[%emt 0:00:09] ...bxc2 is the strong threat.} 25. c3 {[%emt 0:03:40]} (25. exd6 bxc2 26. Rdg1 Rxa4 $19) 25... Rd8 {[%emt 0:05:19]} 26. exd6 {[%emt 0:02:25]} Rxa4 {[%emt 0:00:24][%cal Ra4a1]} 27. Qh2 {[%emt 0:00:45] [#]} e5 $2 $40 {[%emt 0:03:00][%mdl 128] Black attacks with force.} 28. Bc5 $2 {[%emt 0:01:10][%mdl 8192]} (28. Qxe5 $2 Re8 29. Qc5 Qa8 $19) (28. Kd2 $17 {nothing else works.}) 28... Qb5 {[%emt 0:02:40]} 29. Qf2 {[%emt 0:00:35] White is weak on the light squares} (29. Qxe5 $2 {is the wrong capture.} Re8 $19) (29. Ba3 Rda8 (29... Rxa3 $2 30. bxa3 Rc8 31. Kb2 $18) 30. Rhe1 Rxa3 31. Qe2 (31. bxa3 $2 {loses.} Rxa3 32. Qxe5 Ra1+ 33. Kb2 Ra2+ 34. Kb1 Bf5+ $19) 31... Ra1+ 32. Kd2 Rxd1+ 33. Rxd1) 29... Rc8 {[%emt 0:00:59]} 30. Bb6 {[%emt 0:00:35]} Rc6 {[%emt 0:02:12]} 31. Bc7 {[%emt 0:00:31] [#]} Rxc3+ $3 {[%emt 0:03:19][%mdl 512] Black mates.} 32. bxc3 {[%emt 0:00:16]} Ra1+ {[%emt 0:00:02]} 33. Kd2 {[%emt 0:00:11]} Qd5+ {[%emt 0:00:32]} 34. Ke3 {[%emt 0:01:00]} Qc5+ {[%emt 0:00:31] Weighted Error Value: White=1.04/Black=0.12 (very precise) .  Loses game:     	White=2     	---        Missed win:     	---       	Black=1      Mistake:       	White=3     	---        Inaccurate:     	White=1     	---        OK:         	White=7     	Black=8      Best:        	White=2     	Black=4      Strong:       	---       	Black=1} 0-1

[Event "Israel National League 2024"]
[Site "Israel"]
[Date "2024.02.09"]
[Round "5.27"]
[White "Rozen, Eytan"]
[Black "Grinberg, Eyal"]
[Result "1/2-1/2"]
[ECO "A07"]
[WhiteElo "2462"]
[BlackElo "2471"]
[Annotator "TA"]
[PlyCount "95"]
[EventDate "2024.01.07"]
[EventType "team-tourn"]
[EventCountry "ISR"]
[SourceTitle "playchess.com"]
[Source "ChessBase"]
[SourceQuality "1"]
[TimeControl "40/5400+30:1800+30"]

{[%evp 9,95,16,23,21,13,18,31,29,27,21,20,6,5,-13,-12,-8,0,0,0,0,-6,-50,-44,-66,-50,-45,-53,-57,-42,-60,-2,-45,-48,-44,-27,-60,-3,-5,0,-29,-8,-19,-14,-15,-12,-10,-4,-7,-8,-25,0,-22,-27,-25,-27,-17,-10,-12,-8,-8,-8,-8,-8,-13,0,0,0,0,0,0,0,0,0,0,0,0,0,0,0,0,7,7,7,7,7,7,8,0]} 1. Nf3 {[%emt 0:01:00]} Nf6 {[%emt 0:05:38]} 2. g3 {[%emt 0:00:55]} d5 {[%emt 0:02:57]} 3. Bg2 {[%emt 0:00:08]} c6 {[%emt 0:00:04]} 4. O-O {[%emt 0:02:10]} Bg4 {[%emt 0:00:11]} 5. h3 {[%emt 0:01:04]} Bh5 {[%emt 0:00:41] [#]} 6. c4 $1 {[%emt 0:01:55]} e6 {[%emt 0:02:13]} 7. d4 {[%emt 0:00:42]} Bd6 {[%emt 0:01:08]} 8. Nc3 {[%emt 0:09:29] White is slightly better.} Nbd7 {[%emt 0:00:47]} 9. Qb3 {[%emt 0:02:06]} Rb8 {[%emt 0:01:38]} 10. cxd5 {[%emt 0:01:50]} exd5 {[%emt 0:00:45]} 11. Nh4 {[%emt 0:00:15] [#] aiming for Nf5.} O-O {[%emt 0:08:26]} 12. Re1 {[%emt 0:09:31]} Re8 {[%emt 0:03:59]} 13. Bg5 {[%emt 0:05:24]} h6 {[%emt 0:04:43]} 14. Bxf6 {[%emt 0:10:29]} Nxf6 {[%emt 0:01:12]} 15. g4 {[%emt 0:00:50]} Ne4 {[%emt 0:02:05]} 16. Nxe4 {[%emt 0:04:39]} dxe4 {[%emt 0:00:18]} 17. Nf5 {[%emt 0:00:07]} Bg6 {[%emt 0:00:17] ...Bxf5 is the strong threat.} 18. Nxd6 {[%emt 0:00:57]} Qxd6 {[%emt 0:00:07]} 19. e3 {[%emt 0:00:35]} h5 {[%emt 0:02:16]} ({Better is} 19... Kh8 $15) 20. Rac1 {[%emt 0:08:38]} hxg4 {[%emt 0:04:24]} 21. hxg4 {[%emt 0:00:03]} Qd7 {[%emt 0:00:48]} 22. Qd1 {[%emt 0:04:38]} Qe6 {[%emt 0:02:30]} (22... f6 $15) 23. a4 {[%emt 0:02:44]} Rbd8 {[%emt 0:00:40]} 24. Rc5 {[%emt 0:00:34]} b6 {[%emt 0:04:54]} 25. Re5 {[%emt 0:00:09]} Qxe5 {[%emt 0:05:42]} 26. dxe5 {[%emt 0:00:48]} Rxd1 {[%emt 0:00:06]} 27. Rxd1 {[%emt 0:00:02]} Rxe5 $11 {[%emt 0:00:07][%mdl 4096] Endgame. KRB-KRB} 28. Rd8+ {[%emt 0:00:07]} Kh7 {[%emt 0:00:04]} 29. Rd7 {[%emt 0:06:41]} Ra5 {[%emt 0:11:04]} 30. Rd4 {[%emt 0:04:46]} Rd5 {[%emt 0:11:14] ...Rxd4 would now be deadly.} 31. Rc4 {[%emt 0:01:47]} Rd1+ {[%emt 0:00:49]} 32. Kh2 {[%emt 0:00:18]} Rd2 {[%emt 0:01:18][%csl LRb2,LRf2] The position is equal.} 33. Kg3 {[%emt 0:00:04]} Rxb2 {[%emt 0:04:08]} 34. Rxc6 {[%emt 0:01:55]} Rb4 {[%emt 0:05:00]} 35. a5 {[%emt 0:00:24]} bxa5 {[%emt 0:00:28]} 36. Ra6 {[%emt 0:00:15][%csl LRa5,LRa7]} Rb7 {[%emt 0:01:55]} 37. Rxa5 {[%emt 0:00:32]} Kg8 {[%emt 0:01:59]} 38. Kf4 {[%emt 0:03:40]} Re7 {[%emt 0:03:55]} 39. g5 {[%emt 0:00:19]} Kf8 {[%emt 0:01:45]} 40. Bf1 {[%emt 0:01:31]} Ke8 {[%emt 0:02:35]} 41. Bb5+ {[%emt 0:30:34]} Kd8 {[%emt 0:30:52]} 42. Bc6 {[%emt 0:00:06]} Kc8 {[%emt 0:01:53]} 43. Ra4 {[%emt 0:00:54]} Kb8 {[%emt 0:01:57]} 44. Bd5 {[%emt 0:00:27]} (44. Bxe4 $6 Re6 $16) 44... Rd7 {[%emt 0:00:00]} 45. Ke5 {[%emt 0:00:00]} Rd8 {[%emt 0:00:00]} 46. Rb4+ {[%emt 0:00:00]} Kc8 {[%emt 0:00:00]} 47. Rc4+ {[%emt 0:00:00]} (47. Bxe4 Re8+ 48. Kd5 Bxe4+ 49. Rxe4 Rxe4 50. Kxe4 g6 $19) 47... Kb8 $1 {[%emt 0:00:00]} 48. Rb4+ {[%emt 0:00:00] Weighted Error Value: White=0.07 (flawless) /Black=0.09 (flawless) .  Mistake:       	---       	Black=2      Inaccurate:     	White=4     	---        OK:         	White=21    	Black=17     Best:        	---       	Black=3      Strong:       	---       	Black=1} (48. Bxe4 Re8+ 49. Kf4 Rxe4+ 50. Rxe4 Bxe4 51. Kxe4 Kc7 $19) 1/2-1/2

[Event "Israel National League 2024"]
[Site "Israel"]
[Date "2024.02.09"]
[Round "5.28"]
[White "Mesropov, Konstantin"]
[Black "Erenberg, Ariel"]
[Result "0-1"]
[ECO "A13"]
[WhiteElo "2440"]
[BlackElo "2496"]
[Annotator "RC"]
[PlyCount "150"]
[EventDate "2024.01.07"]
[EventType "team-tourn"]
[EventCountry "ISR"]
[SourceTitle "playchess.com"]
[Source "ChessBase"]
[SourceQuality "1"]
[TimeControl "40/5400+30:1800+30"]

1. Nf3 {[%emt 0:00:16]} Nf6 {[%emt 0:05:15]} 2. c4 {[%emt 0:00:15]} e6 {[%emt 0:00:44]} 3. b3 {[%emt 0:00:59]} d5 {[%emt 0:04:41]} 4. Bb2 {[%emt 0:00:27]} Bd6 {[%emt 0:07:07]} 5. g3 {[%emt 0:04:32]} O-O {[%emt 0:01:23]} 6. Bg2 {[%emt 0:00:11]} b6 {[%emt 0:01:43]} 7. O-O {[%emt 0:01:30]} Bb7 {[%emt 0:00:35]} 8. Nc3 {[%emt 0:03:33]} Nbd7 {[%emt 0:04:03]} 9. cxd5 {[%emt 0:13:25]} exd5 {[%emt 0:00:35]} 10. Nb5 {[%emt 0:02:40]} Be7 {[%emt 0:01:32]} 11. Rc1 {[%emt 0:01:50]} Ne8 {[%emt 0:12:45]} 12. Qc2 {[%emt 0:14:09]} g6 {[%emt 0:19:31]} 13. Rfe1 {[%emt 0:07:01]} a6 {[%emt 0:01:08]} 14. Nc3 {[%emt 0:00:52]} Bf6 {[%emt 0:09:30]} 15. Ba3 {[%emt 0:06:52]} c5 {[%emt 0:01:16]} 16. d4 {[%emt 0:00:17]} Nd6 {[%emt 0:08:07]} 17. dxc5 {[%emt 0:07:16]} bxc5 {[%emt 0:00:38]} 18. Na4 {[%emt 0:00:23]} Rc8 {[%emt 0:01:45]} 19. e3 {[%emt 0:11:10]} Nb5 {[%emt 0:00:53]} 20. Bxc5 {[%emt 0:05:38]} d4 {[%emt 0:05:22]} 21. Qd2 {[%emt 0:04:09]} Nxc5 {[%emt 0:01:00]} 22. Nxc5 {[%emt 0:05:31]} Bxf3 {[%emt 0:00:35]} 23. Bxf3 {[%emt 0:00:06]} dxe3 {[%emt 0:00:47]} 24. Qxd8 {[%emt 0:00:49]} exf2+ {[%emt 0:00:33]} 25. Kxf2 {[%emt 0:00:04]} Rfxd8 {[%emt 0:00:12]} 26. Ne4 {[%emt 0:00:53]} Bd4+ {[%emt 0:00:09]} 27. Kg2 {[%emt 0:00:14]} Rxc1 {[%emt 0:00:23]} 28. Rxc1 {[%emt 0:00:02]} f5 {[%emt 0:00:05]} 29. Nc5 {[%emt 0:04:46]} Bxc5 {[%emt 0:00:56]} 30. Rxc5 {[%emt 0:00:01]} Rd2+ {[%emt 0:00:07]} 31. Kg1 {[%emt 0:01:51]} Rxa2 {[%emt 0:00:06]} 32. Rd5 {[%emt 0:00:30]} Kg7 {[%emt 0:01:14]} 33. Rd7+ {[%emt 0:00:16]} Kh6 {[%emt 0:00:07]} 34. h4 {[%emt 0:01:13]} Rb2 {[%emt 0:03:56]} 35. Rd3 {[%emt 0:00:23]} a5 {[%emt 0:00:23]} 36. g4 {[%emt 0:02:55]} fxg4 {[%emt 0:00:32]} 37. Bxg4 {[%emt 0:00:02]} Nc7 {[%emt 0:00:43]} 38. Bc8 {[%emt 0:01:08]} Ne8 {[%emt 0:03:51]} 39. Be6 {[%emt 0:01:09]} Ng7 {[%emt 0:00:33]} 40. Bg4 {[%emt 0:00:31]} Nh5 {[%emt 0:04:02]} 41. Rf3 {[%emt 0:02:34]} Ng7 {[%emt 0:11:57]} 42. Rd3 {[%emt 0:02:19]} Ne8 {[%emt 0:00:15]} 43. Bf3 {[%emt 0:10:12]} Nf6 {[%emt 0:01:15]} 44. Rc3 {[%emt 0:04:53]} Nd7 {[%emt 0:12:11]} 45. Re3 {[%emt 0:05:54]} Nc5 {[%emt 0:03:29]} 46. Bd5 {[%emt 0:00:03]} Rd2 {[%emt 0:00:26]} 47. Bc4 {[%emt 0:00:16]} a4 {[%emt 0:00:42]} 48. bxa4 {[%emt 0:01:02]} Rd4 {[%emt 0:00:04]} 49. Bb5 {[%emt 0:01:48]} Nxa4 {[%emt 0:00:10]} 50. h5 {[%emt 0:00:31]} g5 {[%emt 0:00:17]} 51. Be8 {[%emt 0:03:40]} Nc5 {[%emt 0:00:04]} 52. Rc3 {[%emt 0:00:49]} Ne4 {[%emt 0:00:47]} 53. Re3 {[%emt 0:01:27]} g4 {[%emt 0:02:48]} 54. Bc6 {[%emt 0:00:18]} Nf6 {[%emt 0:00:41]} 55. Re6 {[%emt 0:00:08]} Rf4 {[%emt 0:00:39]} 56. Be8 {[%emt 0:01:09]} Kg5 {[%emt 0:00:32]} 57. Re5+ {[%emt 0:01:00]} Rf5 {[%emt 0:00:16]} 58. Re7 {[%emt 0:00:38]} Nxe8 {[%emt 0:00:36]} 59. Rxe8 {[%emt 0:00:03]} Kxh5 {[%emt 0:04:04]} 60. Kg2 {[%emt 0:01:06]} Kh4 {[%emt 0:00:00]} 61. Re2 {[%emt 0:00:40]} h5 {[%emt 0:00:00]} 62. Ra2 {[%emt 0:00:02]} Rb5 {[%emt 0:00:00]} 63. Rc2 {[%emt 0:00:02]} Kg5 {[%emt 0:00:00]} 64. Ra2 {[%emt 0:00:30]} h4 {[%emt 0:00:00]} 65. Rc2 {[%emt 0:00:02]} h3+ {[%emt 0:00:00]} 66. Kh2 {[%emt 0:00:42]} Kh4 {[%emt 0:00:00]} 67. Rc1 {[%emt 0:00:11]} Rb2+ {[%emt 0:00:00]} 68. Kh1 {[%emt 0:00:09]} Re2 {[%emt 0:00:00]} 69. Ra1 {[%emt 0:01:30]} g3 {[%emt 0:00:00]} 70. Ra4+ {[%emt 0:00:17]} Kg5 {[%emt 0:00:00]} 71. Ra5+ {[%emt 0:00:40]} Kf4 {[%emt 0:00:00]} 72. Ra4+ {[%emt 0:00:09]} Re4 {[%emt 0:00:00]} 73. Ra1 {[%emt 0:00:07]} Kg4 {[%emt 0:00:00]} 74. Rg1 {[%emt 0:00:24]} Ra4 {[%emt 0:00:00]} 75. Rb1 {[%emt 0:00:52]} h2 {[%emt 0:00:00]} 0-1

[Event "Israel National League 2024"]
[Site "Israel"]
[Date "2024.02.09"]
[Round "5.29"]
[White "Rozentalis, Eduardas"]
[Black "Bakalchuk, Johnatan"]
[Result "0-1"]
[ECO "B27"]
[WhiteElo "2455"]
[BlackElo "2450"]
[Annotator "TA"]
[PlyCount "68"]
[EventDate "2024.01.07"]
[EventType "team-tourn"]
[EventCountry "ISR"]
[SourceTitle "playchess.com"]
[Source "ChessBase"]
[SourceQuality "1"]
[TimeControl "40/5400+30:1800+30"]

{[%evp 9,68,0,12,17,20,24,25,25,30,22,26,25,44,34,82,80,83,85,99,49,51,35,36,36,36,-17,-22,-26,-30,-14,0,0,0,0,0,-22,0,0,0,0,0,0,15,16,16,-10,-8,-13,-14,-17,-6,-6,-4,-14,0,-134,-26,-534,-534,-1196,-1127]} 1. e4 {[%emt 0:00:48]} c5 {[%emt 0:00:41]} 2. Nf3 {[%emt 0:00:09]} g6 {[%emt 0:00:28]} 3. c3 {[%emt 0:00:46]} d5 {[%emt 0:00:22]} 4. e5 {[%emt 0:00:09]} Nc6 {[%emt 0:00:20]} 5. d4 {[%emt 0:00:30]} Bg4 {[%emt 0:03:47]} 6. Bb5 {[%emt 0:00:30]} Qb6 {[%emt 0:01:15]} 7. Bxc6+ {[%emt 0:02:46]} bxc6 {[%emt 0:04:13]} 8. dxc5 {[%emt 0:03:57] White has an edge.} Qxc5 {[%emt 0:01:02]} 9. O-O {[%emt 0:00:49]} Bg7 {[%emt 0:06:22]} 10. Re1 {[%emt 0:05:08]} f6 {[%emt 0:15:35]} 11. Be3 {[%emt 0:13:01]} Qa5 {[%emt 0:07:01]} (11... Qb5 $14 {is more appropriate.}) 12. Bd4 $16 {[%emt 0:02:30]} fxe5 {[%emt 0:04:29]} 13. Bxe5 {[%emt 0:00:58]} Nf6 {[%emt 0:14:54]} 14. Qd4 {[%emt 0:13:00]} (14. Nbd2 $16) 14... c5 $1 $14 {[%emt 0:01:51]} 15. Qf4 {[%emt 0:01:14]} Bxf3 {[%emt 0:03:42]} 16. Qxf3 {[%emt 0:11:31]} (16. Bxf6 O-O 17. Qxf3 Rad8 $11) 16... O-O {[%emt 0:00:43]} 17. Bxf6 {[%emt 0:06:28]} (17. Qh3 $14) 17... Rad8 $11 {[%emt 0:01:30][%cal Ba8d8,Bd8d7,Bd7b7][%mdl 32]} 18. Nd2 {[%emt 0:01:33]} Bxf6 {[%emt 0:00:51]} 19. Qe2 {[%emt 0:00:08]} Qb6 {[%emt 0:06:25]} 20. Nf3 {[%emt 0:03:06]} c4 {[%emt 0:04:45][%cal Oe7e5]} 21. Qd2 {[%emt 0:08:12]} Qd6 {[%emt 0:05:03]} 22. Qe3 {[%emt 0:01:57][%cal Oa1d1]} Rd7 {[%emt 0:00:26]} 23. Rad1 {[%emt 0:03:25]} Rb8 {[%emt 0:00:30]} 24. Rd2 {[%emt 0:07:03]} Rdb7 {[%emt 0:01:32]} 25. Qe2 {[%emt 0:00:55]} Rb5 {[%emt 0:01:03]} 26. h4 {[%emt 0:02:18]} Qb6 {[%emt 0:01:37][%cal Rb5b2]} 27. Red1 {[%emt 0:04:01]} Rxb2 {[%emt 0:01:56]} 28. Rxb2 {[%emt 0:00:07]} Qxb2 {[%emt 0:00:05]} 29. Qe6+ {[%emt 0:00:07]} Kh8 {[%emt 0:01:02]} 30. Qxd5 {[%emt 0:01:07]} Qxc3 {[%emt 0:01:08] aiming for ...Qc2.} 31. Ng5 {[%emt 0:01:08]} Qc2 $36 {[%emt 0:04:38][%cal Oh7h6][%mdl 2048] White must now prevent ...h6! Black has the initiative.} 32. g3 {[%emt 0:01:00] [#]} (32. Nf7+ $11 {remains equal.} Kg7 33. Ng5) 32... c3 {[%emt 0:00:56]} ({Much worse is} 32... Qxa2 $6 33. Qf7 Bxg5 34. hxg5 $11) ({Black should play} 32... h6 $1 $17 {[%cal Rh6g5]} 33. Ne6 c3 (33... Qxa2 34. Rc1 $11)) 33. Ne4 {[%emt 0:01:34][%mdl 8192] [#]} (33. Nf7+ $1 $11 {and White has nothing to worry.} Kg7 34. Ng5 Bxg5 35. hxg5) 33... e6 $1 $19 {[%emt 0:03:17][%mdl 512]} 34. Qd7 {[%emt 0:01:48]} (34. Qd6 Rd8) 34... Qxe4 {[%emt 0:00:43] Weighted Error Value: White=0.52/Black=0.11 (very precise) .  Loses game:     	White=1     	---        Mistake:       	White=3     	Black=2      Inaccurate:     	White=2     	---        OK:         	White=14    	Black=10     Best:        	---       	Black=1      Strong:       	---       	Black=1} 0-1

[Event "Israel National League 2024"]
[Site "Israel"]
[Date "2024.02.09"]
[Round "5.30"]
[White "Shohat, Yotam"]
[Black "Mindlin, Alon"]
[Result "1-0"]
[ECO "C95"]
[WhiteElo "2328"]
[BlackElo "2438"]
[Annotator "RC"]
[PlyCount "97"]
[EventDate "2024.01.07"]
[EventType "team-tourn"]
[EventCountry "ISR"]
[SourceTitle "playchess.com"]
[Source "ChessBase"]
[SourceQuality "1"]
[TimeControl "40/5400+30:1800+30"]

1. e4 {[%emt 0:00:03]} e5 {[%emt 0:02:04]} 2. Nf3 {[%emt 0:00:43]} Nc6 {[%emt 0:00:48]} 3. Bb5 {[%emt 0:00:06]} a6 {[%emt 0:00:05]} 4. Ba4 {[%emt 0:00:03]} Nf6 {[%emt 0:00:11]} 5. O-O {[%emt 0:00:07]} Be7 {[%emt 0:00:04]} 6. Re1 {[%emt 0:00:05]} b5 {[%emt 0:00:04]} 7. Bb3 {[%emt 0:00:03]} d6 {[%emt 0:00:06]} 8. c3 {[%emt 0:00:03]} O-O {[%emt 0:00:06]} 9. h3 {[%emt 0:00:02]} Nb8 {[%emt 0:00:06]} 10. d4 {[%emt 0:00:04]} Nbd7 {[%emt 0:00:04]} 11. Nbd2 {[%emt 0:00:04]} Bb7 {[%emt 0:00:04]} 12. Bc2 {[%emt 0:00:05]} Re8 {[%emt 0:00:06]} 13. Nf1 {[%emt 0:00:03]} Bf8 {[%emt 0:00:05]} 14. Ng3 {[%emt 0:00:04]} g6 {[%emt 0:00:05]} 15. a4 {[%emt 0:00:09]} Bg7 {[%emt 0:00:06]} 16. Bd3 {[%emt 0:00:06]} c6 {[%emt 0:02:00]} 17. Bg5 {[%emt 0:00:36]} h6 {[%emt 0:15:21]} 18. Be3 {[%emt 0:00:49]} Qe7 {[%emt 0:12:27]} 19. Qd2 {[%emt 0:00:46]} Kh7 {[%emt 0:02:15]} 20. b4 {[%emt 0:02:41]} Qf8 {[%emt 0:11:41]} 21. Ra2 {[%emt 0:25:13]} Rac8 {[%emt 0:13:30]} 22. axb5 {[%emt 0:04:39]} cxb5 {[%emt 0:01:36]} 23. d5 {[%emt 0:00:07]} Ng8 {[%emt 0:03:13]} 24. Rea1 {[%emt 0:20:25]} Nb8 {[%emt 0:03:36]} 25. Ba7 {[%emt 0:12:04]} Rc7 {[%emt 0:03:22]} 26. Rc2 {[%emt 0:08:53]} Nd7 {[%emt 0:02:29]} 27. c4 {[%emt 0:01:44]} bxc4 {[%emt 0:05:22]} 28. Rxc4 {[%emt 0:00:32]} Rxc4 {[%emt 0:00:29]} 29. Bxc4 {[%emt 0:00:02]} Ra8 {[%emt 0:00:16]} 30. Be3 {[%emt 0:03:35]} Ne7 {[%emt 0:03:11]} 31. Qd1 {[%emt 0:14:15]} f5 {[%emt 0:05:03]} 32. Bc1 {[%emt 0:01:50]} Nb6 {[%emt 0:00:55]} 33. Bb3 {[%emt 0:01:11]} fxe4 {[%emt 0:02:17]} 34. Nxe4 {[%emt 0:00:02]} Nexd5 {[%emt 0:05:22]} 35. Ra5 {[%emt 0:02:42]} Rc8 {[%emt 0:00:24]} 36. Bb2 {[%emt 0:03:21]} Nc4 {[%emt 0:04:03]} 37. Bxc4 {[%emt 0:00:07]} Rxc4 {[%emt 0:00:01]} 38. Rxd5 {[%emt 0:00:40]} Rxe4 {[%emt 0:00:03]} 39. Rxd6 {[%emt 0:00:21]} Rxb4 {[%emt 0:00:16]} 40. Bxe5 {[%emt 0:01:11]} Bxf3 {[%emt 0:02:29]} 41. Bxg7 {[%emt 0:01:41]} Qb8 {[%emt 0:04:21]} 42. Qd2 {[%emt 0:04:11]} Rb1+ {[%emt 0:05:39]} 43. Kh2 {[%emt 0:01:03]} Kxg7 {[%emt 0:00:06]} 44. gxf3 {[%emt 0:00:16]} Rb7 {[%emt 0:07:45]} 45. Qd3 {[%emt 0:02:22]} Qf8 {[%emt 0:06:04]} 46. Rxg6+ {[%emt 0:08:46]} Kh8 {[%emt 0:00:21]} 47. Qxa6 {[%emt 0:03:16]} Qf4+ {[%emt 0:04:33]} 48. Kg2 {[%emt 0:00:12]} Rf7 {[%emt 0:01:03]} 49. Qa8+ {[%emt 0:00:22]} 1-0

[Event "Israel National League 2024"]
[Site "Israel"]
[Date "2024.02.16"]
[Round "7.1"]
[White "Boruchovsky, Avital"]
[Black "Tzidkiya, Yeshaayahu"]
[Result "1-0"]
[ECO "E71"]
[WhiteElo "2528"]
[BlackElo "2448"]
[Annotator "TA"]
[PlyCount "75"]
[EventDate "2024.01.07"]
[EventType "team-tourn"]
[EventCountry "ISR"]
[SourceTitle "playchess.com"]
[Source "ChessBase"]
[SourceQuality "1"]
[TimeControl "40/5400+30:1800+30"]

{[%evp 11,75,16,28,19,18,8,45,27,46,33,35,58,54,39,43,37,44,16,14,17,33,24,21,13,31,46,104,116,159,163,241,243,219,172,163,161,161,160,215,214,269,251,243,239,231,119,563,557,567,567,635,598,837,879,839,858,827,911,916,901,867,868,1018,970,904,876]} 1. d4 {[%emt 0:02:43]} Nf6 {[%emt 0:00:05]} 2. c4 {[%emt 0:00:12]} g6 {[%emt 0:00:15]} 3. Nc3 {[%emt 0:00:31]} Bg7 {[%emt 0:00:06]} 4. e4 {[%emt 0:00:21]} d6 {[%emt 0:00:03]} 5. h3 {[%emt 0:00:23]} O-O {[%emt 0:00:06]} 6. Be3 {[%emt 0:00:12]} c5 {[%emt 0:03:02]} 7. d5 {[%emt 0:03:08]} e6 {[%emt 0:00:14]} 8. Nf3 {[%emt 0:00:24]} Na6 {[%emt 0:02:02][%cal Bb8a6,Ba6c7,Bc7e6,Be6d4,Bd4f3][%mdl 32]} (8... exd5 $5 9. cxd5 Qe7 $14) 9. Bd3 {[%emt 0:07:24] White is slightly better.} Nc7 {[%emt 0:03:47]} 10. dxe6 {[%emt 0:03:46]} Bxe6 {[%emt 0:01:13]} 11. O-O {[%emt 0:00:27]} Re8 {[%emt 0:01:08]} 12. Qd2 {[%emt 0:07:04]} Bd7 {[%emt 0:37:16]} 13. Rfe1 {[%emt 0:09:38]} Bc6 {[%emt 0:13:21][%cal Rc6e4]} 14. Bf4 {[%emt 0:00:59]} Ne6 {[%emt 0:00:06]} 15. Bh2 {[%emt 0:00:08]} Qa5 {[%emt 0:06:44]} 16. Rad1 {[%emt 0:14:07]} Nd4 {[%emt 0:05:37]} 17. Bxd6 {[%emt 0:02:50]} Nxf3+ {[%emt 0:06:57]} 18. gxf3 {[%emt 0:00:02][%cal Bg2f3,Bf3f4][%mdl 32]} Qd8 {[%emt 0:02:10]} (18... Nd7 $14) 19. Bxc5 $16 {[%emt 0:05:37]} Nd7 {[%emt 0:10:34]} 20. Be3 {[%emt 0:05:12]} Ne5 {[%emt 0:02:47]} (20... Qh4 $142) 21. Be2 $18 {[%emt 0:00:07]} Qh4 {[%emt 0:00:10]} 22. f4 {[%emt 0:00:50]} Nd7 {[%emt 0:03:14][%cal Og7c3]} 23. Bf1 $1 {[%emt 0:12:31]} Bxc3 {[%emt 0:00:32]} 24. Qxc3 {[%emt 0:00:12]} ({Don't play} 24. bxc3 $6 Rxe4 25. Bg2 Nf6 $14) 24... Rxe4 {[%emt 0:00:08] [#]} (24... Nf6 $16 {might work better.}) 25. b4 $1 {[%emt 0:00:12][%cal Bb2b4,Bb4b5][%mdl 32] Threatens to win with b5.} Nf6 {[%emt 0:00:51]} 26. b5 {[%emt 0:08:43]} Bd7 {[%emt 0:00:02]} 27. Bc1 {[%emt 0:00:16] Hoping for Bg2.} Be6 {[%emt 0:00:54] [#]} 28. Qg3 {[%emt 0:01:58]} (28. Qf3 $1 $18 Rxe1 29. Rxe1) 28... Qh5 $2 {[%emt 0:00:30][%mdl 8192] This costs Black the game.} (28... Rxe1 $16 {is more resistant.} 29. Rxe1 (29. Qxh4 Rxd1 30. Be3 Ne4 $16) 29... Qxg3+ 30. fxg3 Nd7) 29. Bb2 {[%emt 0:00:58] White is clearly winning.} Qf5 {[%emt 0:00:35]} 30. Qc3 {[%emt 0:02:49] Black must now prevent Rxe4.} Rxf4 {[%emt 0:00:08]} 31. Re5 {[%emt 0:00:11]} Rg4+ {[%emt 0:00:30]} 32. hxg4 {[%emt 0:00:06]} Qxg4+ {[%emt 0:00:02]} 33. Bg2 {[%emt 0:00:10] And now Rd4 would win.} Qxd1+ {[%emt 0:00:17]} 34. Re1 {[%emt 0:00:02]} Qd8 {[%emt 0:00:47]} 35. Qxf6 {[%emt 0:00:27]} Qxf6 {[%emt 0:00:02]} 36. Bxf6 {[%emt 0:00:09] A strong pair of Bishops.} Bxc4 {[%emt 0:00:01]} 37. Bxb7 {[%emt 0:00:19]} Rb8 {[%emt 0:00:05] [#]} 38. a4 $1 {[%emt 0:00:38] Weighted Error Value: White=0.12 (very precise) /Black=0.44.  Loses game:     	---       	Black=1      Mistake:       	White=1     	Black=3      Inaccurate:     	White=1     	Black=3      OK:         	White=10    	Black=11     Best:        	White=3     	---} 1-0